Cogmind - Beta 13 @@@ ROGUE MODE // 2024.06.17 @ 16:14:04 Player: ovsyanka Result: Destroyed by H-77 Assassin with Coil Gun Performance ------------- Evolutions (6) 3000 Regions Visited (15) 3000 Robots Destroyed (177) 885 Value Destroyed (3997) 3997 Prototype IDs (35) 700 Alien Tech Used (1) 200 Bonus (428) 428 TOTAL SCORE: 12210 Bonus ------- High Alert Combat Kills 119 Follower Combat Kills 14 Aligned with FarCom 300 Friendly Fire -5 Cogmind --------- Core Integrity 0/1150 Matter 111/300 Energy 99/100 System Corruption 16% Temperature Cool (0) Movement Core (50) Location -4/Factory Parts ------- > --- POWER (3) -------- (None) > --- PROPULSION (4) --- (None) > --- UTILITY (11) ----- Hacking Suite Improved Hacking Suite System Shield Makeshift System Shield Makeshift System Shield Makeshift System Shield > --- WEAPON (2) ------- (None) > --- INVENTORY (5) ---- Micro Fission Core Power Amplifier Improved Trap Scanner Advanced ECM Suite Advanced Shield Generator Peak State ------------ > --- POWER ------------ Light Ion Engine Light Ion Engine Light Ion Engine > --- PROPULSION ------- Antigrav System Antigrav System Antigrav System Antigrav System > --- UTILITY ---------- Medium Storage Unit Modified TNC Hacking Suite Hacking Suite Improved Hacking Suite Advanced Hacking Suite Advanced Hacking Suite Makeshift System Shield Makeshift System Shield Makeshift System Shield Makeshift System Shield > --- WEAPON ----------- Mini Smartbomb Launcher Makeshift Axe > --- INVENTORY -------- Improved VTOL Module Field Propulsion Drive Power Amplifier Energy Well Improved Trap Scanner Advanced ECM Suite Advanced Shield Generator System Shield System Shield [Rating: 88] Favorites ----------- Power Light Ion Engine Engine Light Ion Engine Power Core Light Nuclear Core Propulsion Wheel Treads Advanced Treads Wheel Wheel Hover Unit Aerolev Unit Flight Unit Improved VTOL Module Utility Makeshift System Shield Device Improved Heat Sink Storage Huge Storage Unit Processor Improved Targeting Computer Hackware Makeshift System Shield Protection Core Shielding Weapon Improved Medium Laser Energy Gun Improved Medium Laser Energy Cannon Beam Cannon Ballistic Gun Light Assault Rifle Ballistic Cannon Assault Cannon Launcher Improved Grenade Launcher Special Weapon Mining Laser Impact Weapon Impact Mace Slashing Weapon Makeshift Axe Build | -11 -10 -10 -9 -9 -9 -8 -8 -7 -7 -7 -6 -6 -6 -5 -4 ------- Run | Yrd Mat Min Mat Min Exi Min Mat Fac Low Low Fac Was Fac Fac Fac Slots Evolved 12 | . . . 2 . . . 2 2 . . 2 . . 2 2 Power 1 | . . . . . . . . 1 . . . . . . . Propulsion 2 | . . . . . . . 1 1 . . . . . . . Utility 9 | . . . 2 . . . 1 . . . 2 . . 2 2 Weapon . | . . . . . . . . . . . . . . . . Parts Attached 216 | 9 23 2 47 9 . 3 46 18 2 . 8 . 1 23 25 Power 26 | 1 5 . 5 1 . 1 3 2 . . . . 1 3 4 Engine 20 | 1 5 . 5 1 . 1 1 . . . . . 1 3 2 Core 6 | . . . . . . . 2 2 . . . . . . 2 Reactor . | . . . . . . . . . . . . . . . . Propulsion 57 | 4 5 1 9 2 . . 11 6 . . 2 . . 7 10 Treads 5 | 1 . . 1 . . . 3 . . . . . . . . Leg . | . . . . . . . . . . . . . . . . Wheel 26 | 3 5 1 8 2 . . 7 . . . . . . . . Hover 18 | . . . . . . . 1 6 . . 2 . . 2 7 Flight 8 | . . . . . . . . . . . . . . 5 3 Utility 62 | 2 3 . 22 3 . . 8 7 1 . 5 . . 6 5 Device 16 | 1 1 . 5 1 . . 4 . . . 1 . . 1 2 Storage 5 | 1 2 . 1 . . . . . 1 . . . . . . Processor 5 | . . . 3 . . . . 2 . . . . . . . Hackware 14 | . . . . . . . . 4 . . 4 . . 3 3 Protection 22 | . . . 13 2 . . 4 1 . . . . . 2 . Artifact . | . . . . . . . . . . . . . . . . Weapon 71 | 2 10 1 11 3 . 2 24 3 1 . 1 . . 7 6 Energy Gun 33 | 1 5 1 8 2 . 1 14 . . . . . . . 1 Energy Cannon 7 | . 4 . 1 . . . 1 . . . . . . . 1 Ballistic Gun 3 | 1 . . . . . . . . . . . . . . 2 Ballistic Cannon 3 | . . . . . . . 3 . . . . . . . . Launcher 15 | . . . 2 1 . 1 5 1 . . . . . 3 2 Special Weapon 1 | . 1 . . . . . . . . . . . . . . Impact Weapon 3 | . . . . . . . 1 2 . . . . . . . Slashing Weapon 6 | . . . . . . . . . 1 . 1 . . 4 . Piercing Weapon . | . . . . . . . . . . . . . . . . Special Melee Weapon . | . . . . . . . . . . . . . . . . Unidentified Prototypes 12 | . . . 4 . . . 3 1 1 . . . 1 2 . Corrupted Parts 1 | . . . . . . . . . 1 . . . . . . System Corruption 4 | . . . . . . . . . 4 . . . . . . Parts Lost 58 | . . . 15 2 . 1 7 . . . 2 . . 8 23 Power 12 | . . . 3 . . 1 2 . . . 1 . . 1 4 Propulsion 23 | . . . 7 . . . 2 . . . . . . 4 10 Utility 16 | . . . 3 2 . . 2 . . . 1 . . 2 6 Weapon 7 | . . . 2 . . . 1 . . . . . . 1 3 Highest Loss Streak 10 | . . . 7 1 . 1 5 . . . 2 . . 4 10 To Critical Strikes 5 | . . . 3 . . . . . . . . . . 2 . Average Slot Usage (%) 91 | . 99 100 97 99 100 98 98 91 87 85 75 68 68 75 78 Engine 7 | . 13 14 10 11 11 10 8 . . . . . . 2 7 Core 2 | . . . . . . . . 14 14 14 9 6 6 1 . Wheel 14 | . 24 28 18 22 22 22 24 . . . . . . . . Hover 5 | . . . . . . . . 29 28 28 16 12 12 4 12 Flight 1 | . . . . . . . . . . . . . . 12 3 Device 8 | . 14 14 11 11 11 11 12 . . . 2 6 6 1 . Storage 8 | . 14 14 11 11 11 11 9 . 4 7 6 6 6 5 4 Processor 7 | . . . 10 11 11 11 9 6 7 7 6 6 6 5 3 Hackware 11 | . . . . . . . . 27 24 21 28 25 25 36 40 Protection 6 | . . . 11 10 11 11 14 1 . . . . . . . Energy Gun 11 | . 11 14 19 21 22 22 15 . . . . . . . . Energy Cannon 1 | . 13 14 2 . . . . . . . . . . . . Slashing Weapon 1 | . . . . . . . . . 4 7 6 6 6 5 3 Naked Turns . | . . . . . . . . . . . . . . . . Heaviest Build 104 | 14 31 34 103 102 95 97 104 19 23 23 23 19 19 23 26 Greatest Support 66 | 32 26 26 22 20 20 20 66 33 33 33 40 40 40 40 45 Greatest Overweight (x) 32 | 1 1 1 32 5 4 4 9 . . . . . . 2 3 Average Overweight (x) 1 | . . 1 3 4 4 4 3 . . . . . . . . Largest Inventory Capacity 25 | 8 15 15 25 25 25 25 25 25 10 10 10 10 10 10 10 Average Capacity 16 | 7 10 15 20 25 25 25 25 5 8 10 10 10 10 10 9 Most Carried 25 | 8 15 15 25 25 25 25 25 25 9 9 10 9 10 10 10 Average Carried 15 | 6 9 14 18 24 24 24 23 5 7 9 9 9 9 9 8 Final Capacity 25 | 8 15 15 25 25 25 25 25 5 10 10 10 10 10 10 5 Final Carried 25 | 8 15 15 25 25 25 24 25 5 9 9 9 9 10 10 5 Class Distribution -------------------- 43% | Scavenger-Mutant 20% | Mutant 12% | Hacker-Mutant 9% | Wizard-Mutant 5% | Wizard-Sprinter 5% | Hacker-Scout Dominant Class ---------------- Mutant | -10/Materials Mutant | -10/Mines Scavenger-Mutant | -9/Materials Scavenger-Mutant | -9/Mines Scavenger-Mutant | -9/Exiles Scavenger-Mutant | -8/Mines Scavenger-Mutant | -8/Materials Hacker-Mutant | -7/Factory Hacker-Mutant | -7/Lower Caves Hacker-Mutant | -7/Lower Caves Hacker-Mutant | -6/Factory Hacker-Scout | -6/Waste Hacker-Scout | -6/Factory Wizard-Sprinter | -5/Factory Wizard-Mutant | -4/Factory Resources | -11 -10 -10 -9 -9 -9 -8 -8 -7 -7 -7 -6 -6 -6 -5 -4 ----------- Run | Yrd Mat Min Mat Min Exi Min Mat Fac Low Low Fac Was Fac Fac Fac Matter Collected 3162 | 348 311 26 577 180 . 74 574 205 92 . 70 . 17 208 480 Remotely . | . . . . . . . . . . . . . . . . Salvage Created 6337 | 196 623 78 2000 420 . 134 864 222 156 . 241 . 245 826 332 Parts 357 | 14 37 7 123 19 . 21 46 3 . . 6 . 9 50 22 Haulers Intercepted 19 | . 2 . 5 . . . 4 1 . . 2 . 2 2 1 Recyclers Shooed 12 | . 1 . 1 4 . 1 . . . . . . 1 . 4 Parts Field Recycled . | . . . . . . . . . . . . . . . . Retrieved Matter . | . . . . . . . . . . . . . . . . Parts Self-Destructed 5 | . . . . . . . . . 5 . . . . . . Prevented 4 | . . . . . . . . . 4 . . . . . . Kills | -11 -10 -10 -9 -9 -9 -8 -8 -7 -7 -7 -6 -6 -6 -5 -4 ------- Run | Yrd Mat Min Mat Min Exi Min Mat Fac Low Low Fac Was Fac Fac Fac Combat Hostiles Destroyed 94 | . 10 3 37 9 . 10 13 1 . . . . . 8 3 Melee 7 | . . . . . . . . . . . . . . 7 . Guns 53 | . 2 3 27 5 . 6 9 . . . . . . . 1 Cannons 14 | . 7 . 3 . . . 4 . . . . . . . . AOE 16 | . . . 6 2 . 4 . 1 . . . . . 1 2 Classes Destroyed 16 | 3 5 . 4 1 . . 1 . . . . . . 2 . Worker 16 | 2 . 2 2 1 . . 3 . . . . . 1 3 2 Builder 14 | . . . 5 1 . . . 1 . . 2 . . 3 2 Tunneler 13 | 5 . . 2 1 . 1 . 1 . . . . 1 1 1 Hauler 19 | . 2 . 5 . . . 4 1 . . 2 . 2 2 1 Recycler 7 | 1 2 . . 1 . . . 2 . . . . . 1 . Mechanic 1 | . . . . . . . . . . . . . . 1 . Operator 7 | . 2 . 3 . . . 1 . . . . . . . 1 Watcher 7 | . 1 . 2 . . . 2 . . . . . . 2 . Swarmer 27 | . 3 3 4 2 . 10 . . . . . . . 5 . Grunt 43 | . 7 . 21 6 . . 8 1 . . . . . . . Brawler 2 | . . . 2 . . . . . . . . . . . . Duelist 2 | . . . 1 . . . 1 . . . . . . . . Sentry 13 | . . . 9 . . . 3 . . . . . . 1 . Hunter 1 | . . . . . . . 1 . . . . . . . . Programmer 5 | . . . . . . . . . . . . . . 2 3 Decomposer 1 | . . . . . . . . . 1 . . . . . . Packrat 2 | . . . . . . . . . 2 . . . . . . Assembled 1 | . . . . 1 . . . . . . . . . . . Best Kill Streak 7 | 5 4 4 5 7 . 5 5 1 . . 1 . 3 5 2 Combat Bots Only 5 | . 3 3 4 4 . 5 3 1 . . . . . 5 2 Max Kills in Single Turn 4 | 1 1 1 3 2 . 4 2 1 1 . 1 . 1 1 1 Gunslinging . | . . . . . . . . . . . . . . . . Exploded 4 | . . . 3 1 . 4 . 1 . . . . . 1 1 Melee 1 | . . . . . . . . . . . . . . 1 . Uniques/NPCs Destroyed . | . . . . . . . . . . . . . . . . Combat | -11 -10 -10 -9 -9 -9 -8 -8 -7 -7 -7 -6 -6 -6 -5 -4 -------- Run | Yrd Mat Min Mat Min Exi Min Mat Fac Low Low Fac Was Fac Fac Fac Hostile Shots Fired 509 | . 20 5 116 29 . 19 88 3 1 . . 1 1 75 151 Missed 159 | . 6 2 27 7 . 4 20 . . . . 1 1 19 72 Damage Taken 6993 | . 150 23 1555 330 . 154 1087 48 13 . 265 . . 1153 2215 Core 2122 | . 48 . 223 75 . 29 213 . . . 85 . . 297 1152 Absorbed by Shields 31 | . . . . . . . . . . . . . . 26 5 Redirected to Shielding 141 | . . . 20 7 . 4 110 . . . . . . . . Core Remaining (%) 74 | 100 . 80 . . . 18 61 . . 100 . . 90 70 . Volleys Fired 346 | 30 37 7 113 29 . 13 68 5 . . . . . 5 39 Largest 2 | 2 2 2 2 2 . 2 2 1 . . . . . 1 1 Hottest 136 | 70 110 135 135 112 . 112 136 36 . . . . . 80 88 Shots Fired 617 | 60 70 14 216 55 . 24 128 5 . . . . . 5 40 Gun 498 | 60 35 7 193 53 . 23 99 . . . . . . . 28 Cannon 91 | . 34 7 19 . . . 28 . . . . . . . 3 Launcher 27 | . . . 4 2 . 1 1 5 . . . . . 5 9 Special 1 | . 1 . . . . . . . . . . . . . . Kinetic 95 | 30 10 . . . . . 27 . . . . . . . 28 Thermal 492 | 30 60 14 212 53 . 23 100 . . . . . . . . Explosive 27 | . . . 4 2 . 1 1 5 . . . . . 5 9 Electromagnetic 3 | . . . . . . . . . . . . . . . 3 Robot Hit Streak 24 | 12 24 4 19 9 . 11 13 6 . . . . . 11 20 Robot Miss Streak 4 | 3 4 2 4 2 . 3 4 . . . . . . . 4 Penetration Max 1 | . . . . . . . . . . . . . . . 1 Secondary Targets 2 | . . . 1 1 . . . . . . . . . . . Max Gunslinging Chain 1 | . . . 1 1 . . . . . . . . . . . Shots Hit Robots 493 | 44 47 6 147 36 . 13 85 10 3 . 4 . 13 50 35 Core Hits 224 | 11 22 5 66 19 . 11 39 3 . . 3 . 5 21 19 Critical Kills 3 | . 1 . . . . . . . . . . . . . 2 Critical Parts Destroyed 5 | . . . . . . . . 3 2 . . . . . . Critical Strikes 49 | 2 3 . 17 2 . 2 12 3 2 . . . 1 3 2 Burn 36 | 2 2 . 17 2 . 2 11 . . . . . . . . Meltdown 1 | . 1 . . . . . . . . . . . . . . Destroy 2 | . . . . . . . . . . . . . . . 2 Blast 1 | . . . . . . . 1 . . . . . . . . Smash 5 | . . . . . . . . 3 2 . . . . . . Sever 4 | . . . . . . . . . . . . . 1 3 . Melee Attacks 196 | . . . . . . . 4 9 12 . 16 . 20 109 26 Impact 19 | . . . . . . . 4 9 6 . . . . . . Slashing 177 | . . . . . . . . . 6 . 16 . 20 109 26 Piercing . | . . . . . . . . . . . . . . . . Sneak Attacks 38 | . . . . . . . . 5 3 . 4 . 5 15 6 Combat Hostiles . | . . . . . . . . . . . . . . . . Follow-up Attacks 1 | . . . . . . . . . . . . . . 1 . Damage Inflicted 13848 | 449 694 88 3259 851 . 460 1733 654 376 . 331 . 794 2458 1701 Guns 5943 | 449 239 70 2630 582 . 200 1187 . . . . . . . 586 Cannons 1144 | . 452 18 218 . . . 375 . . . . . . . 81 Explosions 1997 | . . . 411 269 . 260 171 193 . . . . . 223 470 Melee 4761 | . . . . . . . . 461 376 . 331 . 794 2235 564 Ramming 3 | . 3 . . . . . . . . . . . . . . Kinetic 1148 | 145 42 . . . . . 375 . . . . . . . 586 Thermal 5881 | 304 649 88 2848 582 . 200 1187 . . . . . . . 23 Explosive 1974 | . . . 411 269 . 260 171 193 . . . . . 223 447 Electromagnetic 81 | . . . . . . . . . . . . . . . 81 Impact 837 | . . . . . . . . 461 376 . . . . . . Slashing 3924 | . . . . . . . . . . . 331 . 794 2235 564 Piercing . | . . . . . . . . . . . . . . . . Highest Corruption 16 | . 1 1 15 15 15 15 . 1 5 5 2 10 10 5 16 Average Corruption 6 | . 1 1 3 15 15 15 . 1 3 5 2 8 10 4 10 Corruption Purged . | . . . . . . . . . . . . . . . . Corruption Blocked . | . . . . . . . . . . . . . . . . Effects 194 | . 1 4 47 38 12 12 . 3 11 1 3 4 18 16 24 Message Errors 42 | . . 1 12 6 4 3 . . 3 . . 1 3 3 6 Matter Fused 42 | . . 1 12 9 2 3 . 1 3 . . . 2 3 6 Heat Flow Errors 29 | . . . 8 6 1 2 . . 3 1 1 1 3 2 1 Energy Discharges 33 | . . 2 6 9 3 2 . 1 . . 1 1 4 2 2 Parts Rejected 3 | . . . 2 . . . . . . . . . . 1 . Parts Fused 1 | . . . . . . . . . . . . . 1 . . Data Loss (minor) 24 | . 1 . 3 6 . . . . . . 1 . 5 2 6 Data Loss (major) 12 | . . . 2 1 1 . . 1 2 . . . . 3 2 Misfires 3 | . . . 2 . . . . . . . . . . . 1 Alerts 2 | . . . . . 1 1 . . . . . . . . . Misdirections 1 | . . . . . . . . . . . . 1 . . . Weapon Failures 2 | . . . . 1 . 1 . . . . . . . . . Overload Shots . | . . . . . . . . . . . . . . . . Overflow Damage 1442 | . 7 . . 17 . . . 412 369 . 37 . 47 385 168 Projectiles 7 | . 7 . . . . . . . . . . . . . . Explosions 131 | . . . . 17 . . . 1 . . . . . . 113 Melee 1304 | . . . . . . . . 411 369 . 37 . 47 385 55 Knockbacks 4 | . . . . . . . 3 1 . . . . . . . Impact 1 | . . . . . . . . 1 . . . . . . . Kinetic 3 | . . . . . . . 3 . . . . . . . . Secondary . | . . . . . . . . . . . . . . . . Self-Inflicted Damage 504 | . 1 . 169 32 . 26 1 . . . . . . . 275 Shots 9 | . . . 3 1 . 1 1 . . . . . . . 3 Rammed 1 | . 1 . . . . . . . . . . . . . . Targets Rammed 1 | . 1 . . . . . . . . . . . . . . Kicked . | . . . . . . . . . . . . . . . . Crushed . | . . . . . . . . . . . . . . . . Highest Temperature 441 | 350 158 33 253 214 214 262 60 55 260 217 127 250 233 242 441 Average Temperature 71 | 151 30 14 57 64 118 68 18 29 107 93 70 135 88 167 144 Received Heat Transfer 1332 | . 84 . 459 129 . . 477 27 9 . . . . 126 21 Effects 9 | 2 . . . . . . . . . 2 . . . . 5 Energy Bleed 1 | 1 . . . . . . . . . . . . . . . Interference 4 | 1 . . . . . . . . . 2 . . . . 1 Damage (major) 4 | . . . . . . . . . . . . . . . 4 Siege Activations . | . . . . . . . . . . . . . . . . Robots Corrupted . | . . . . . . . . . . . . . . . . Combat Hostiles . | . . . . . . . . . . . . . . . . Parts Fried 10 | . . . . . . . . 9 . . . . . . 1 Impact Corruptions 11 | . . . . . . . . 8 3 . . . . . . Robots Melted 5 | . 1 . 1 2 . . 1 . . . . . . . . Combat Hostiles 4 | . 1 . 1 2 . . . . . . . . . . . Parts Melted 35 | . 5 . 16 4 . 1 9 . . . . . . . . Heat Transferred 15442 | 1036 1702 222 6771 1517 . 592 3552 . . . . . . . 50 Parts Sabotaged . | . . . . . . . . . . . . . . . . Parts Stolen . | . . . . . . . . . . . . . . . . Parts Stripped . | . . . . . . . . . . . . . . . . Power Chain Reactions 1 | . . . . . . . . . . . . . . . 1 Alert | -11 -10 -10 -9 -9 -9 -8 -8 -7 -7 -7 -6 -6 -6 -5 -4 ------- Run | Yrd Mat Min Mat Min Exi Min Mat Fac Low Low Fac Was Fac Fac Fac Peak Influence 659 | 40 271 137 659 397 . 263 299 136 . . 26 35 147 586 309 Initial 287 | . 26 27 53 243 . . 102 109 . . . 5 24 . 287 Average 169 | 21 123 62 314 227 . 150 155 107 . . 8 21 73 190 50 Maximum Alert Level 2 | . 1 . 2 1 . 1 1 . . . . . . 2 1 Low Security (%) 62 | 100 76 100 28 24 . 65 57 100 . . 100 100 100 68 95 Level 1 28 | . 23 . 38 75 . 34 42 . . . . . . 11 4 Level 2 9 | . . . 32 . . . . . . . . . . 19 . Level 3 . | . . . . . . . . . . . . . . . . Level 4 . | . . . . . . . . . . . . . . . . Level 5 . | . . . . . . . . . . . . . . . . High Security . | . . . . . . . . . . . . . . . . Max Security . | . . . . . . . . . . . . . . . . Squads Dispatched 31 | . 2 . 8 . . . 1 1 . . 1 . 2 7 9 Investigation 5 | . . . 3 . . . . . . . . . 1 1 . Extermination 7 | . . . . . . . . 1 . . 1 . . 1 4 Reinforcement 14 | . 2 . 3 . . . 1 . . . . . 1 2 5 Assault 2 | . . . 2 . . . . . . . . . . . . Garrison 3 | . . . . . . . . . . . . . . 3 . Intercept . | . . . . . . . . . . . . . . . . Searches Triggered . | . . . . . . . . . . . . . . . . Construction Impeded 4 | . . . . . . . . . . . . . . 1 3 Haulers Reinforced 2 | . . . . . . . . . . . . . 1 1 . Active Scanning Responses . | . . . . . . . . . . . . . . . . Cargo Convoy Interrupts . | . . . . . . . . . . . . . . . . Stealth | -11 -10 -10 -9 -9 -9 -8 -8 -7 -7 -7 -6 -6 -6 -5 -4 --------- Run | Yrd Mat Min Mat Min Exi Min Mat Fac Low Low Fac Was Fac Fac Fac Distress Signals 20 | . 1 . 3 . . . 8 1 . . 1 . . 4 2 Communications Jammed . | . . . . . . . . . . . . . . . . Distress Signals . | . . . . . . . . . . . . . . . . Times Spotted 205 | . 20 4 55 12 . 11 34 3 8 . 1 6 4 26 21 Peak Tracking Total 9 | . 4 3 5 4 . 4 4 3 4 . 2 6 4 9 8 Tactical Retreats 23 | . 1 1 . 1 . 1 3 1 3 . 1 . 2 6 3 Traps | -11 -10 -10 -9 -9 -9 -8 -8 -7 -7 -7 -6 -6 -6 -5 -4 ------- Run | Yrd Mat Min Mat Min Exi Min Mat Fac Low Low Fac Was Fac Fac Fac Traps Triggered 20 | . 4 . 8 . . . . 1 . . 1 . 3 2 1 Indirectly . | . . . . . . . . . . . . . . . . Trap Hack Attempts . | . . . . . . . . . . . . . . . . Triggered . | . . . . . . . . . . . . . . . . Disarmed 4 | . . . 4 . . . . . . . . . . . . Reprogrammed . | . . . . . . . . . . . . . . . . Reused . | . . . . . . . . . . . . . . . . Traps Extracted . | . . . . . . . . . . . . . . . . Installed . | . . . . . . . . . . . . . . . . Triggered 2 | . . . . . . . . . 2 . . . . . . Most Traps Carried 4 | . . . . 4 2 2 2 2 . . . . . . . Machines | -11 -10 -10 -9 -9 -9 -8 -8 -7 -7 -7 -6 -6 -6 -5 -4 ---------- Run | Yrd Mat Min Mat Min Exi Min Mat Fac Low Low Fac Was Fac Fac Fac Machines Disabled 12 | . . . 6 . . . 3 . . . . . . . 3 Max in Single Turn 3 | . . . 3 . . . 1 . . . . . . . 2 Garrison Access 5 | . . . . . . . . 1 . . . . 2 1 1 Machines Repaired . | . . . . . . . . . . . . . . . . Machines Dismantled . | . . . . . . . . . . . . . . . . Machines Sabotaged . | . . . . . . . . . . . . . . . . Overloaded Fab Kills . | . . . . . . . . . . . . . . . . Hacking | -11 -10 -10 -9 -9 -9 -8 -8 -7 -7 -7 -6 -6 -6 -5 -4 --------- Run | Yrd Mat Min Mat Min Exi Min Mat Fac Low Low Fac Was Fac Fac Fac Machines Accessed 41 | . 3 . 5 . 2 . 9 6 1 . 1 . 5 2 7 Terminals 27 | . 3 . 4 . . . 5 4 . . 1 . 3 1 6 Fabricators . | . . . . . . . . . . . . . . . . Repair Stations 1 | . . . . . . . 1 . . . . . . . . Recycling Units 1 | . . . . . . . 1 . . . . . . . . Scanalyzers 3 | . . . 1 . . . 2 . . . . . . . . Garrison Access 6 | . . . . . . . . 2 . . . . 2 1 1 Total Hacks 96 | . 7 . 10 . 2 . 18 9 1 . 3 . 10 3 33 Successful 46 | . 2 . 5 . 2 . 7 3 1 . 1 . 3 1 21 Failed 48 | . 4 . 4 . . . 11 6 . . 2 . 7 2 12 Catastrophic 12 | . 2 . 1 . . . 3 2 . . . . 1 1 2 Database Lockouts 2 | . 1 . 1 . . . . . . . . . . . . Manual 64 | . 8 . 7 . 1 . 9 4 . . 3 . 8 1 23 Terminals 70 | . 7 . 8 . . . 9 5 . . 3 . 8 1 29 Fabricators . | . . . . . . . . . . . . . . . . Repair Stations 1 | . . . . . . . 1 . . . . . . . . Recycling Units 1 | . . . . . . . 1 . . . . . . . . Scanalyzers 9 | . . . 2 . . . 7 . . . . . . . . Garrison Access 12 | . . . . . . . . 4 . . . . 2 2 4 Terminal Hacks 30 | . 2 . 3 . 2 . . 2 1 . 1 . 1 . 18 Record 8 | . . . . . 1 . . . . . . . . . 7 Robot Analysis 2 | . 1 . 1 . . . . . . . . . . . . Open Door 1 | . . . . . . . . . 1 . . . . . . Level Access Points 1 | . . . . . . . . . . . . . . . 1 Terminal Index 5 | . 1 . 1 . . . . 1 . . . . 1 . 1 Unreport Threat 4 | . . . . . . . . . . . . . . . 4 Disarm Traps 1 | . . . 1 . . . . . . . . . . . . Security Status 1 | . . . . . . . . . . . . . . . 1 Surveillance Status 1 | . . . . . . . . . . . . . . . 1 Patrol Status 1 | . . . . . . . . . . . . . . . 1 Intercept Status 1 | . . . . . . . . . . . . . . . 1 Recall Extermination 2 | . . . . . . . . . . . 1 . . . 1 Zone Layout 1 | . . . . . . . . 1 . . . . . . . Derelict Proto ID Bank 1 | . . . . . 1 . . . . . . . . . . Fabricator Hacks . | . . . . . . . . . . . . . . . . Repair Station Hacks . | . . . . . . . . . . . . . . . . Recycling Unit Hacks . | . . . . . . . . . . . . . . . . Scanalyzer 8 | . . . 2 . . . 6 . . . . . . . . Insert Component 4 | . . . 1 . . . 3 . . . . . . . . Analyze 4 | . . . 1 . . . 3 . . . . . . . . Garrison Access Hacks 5 | . . . . . . . . 1 . . . . 2 1 1 Seal Access 5 | . . . . . . . . 1 . . . . 2 1 1 Unauthorized Hacks 3 | . . . . . . . 1 . . . . . . . 2 Terminals 3 | . . . . . . . 1 . . . . . . . 2 Assimilate 2 | . . . . . . . 1 . . . . . . . 1 Botnet 1 | . . . . . . . . . . . . . . . 1 Fabricators . | . . . . . . . . . . . . . . . . Repair Stations . | . . . . . . . . . . . . . . . . Recycling Units . | . . . . . . . . . . . . . . . . Scanalyzers . | . . . . . . . . . . . . . . . . Garrison Access . | . . . . . . . . . . . . . . . . Data Cores Recovered 1 | . . . 1 . . . . . . . . . . . . Used . | . . . . . . . . . . . . . . . . Hacking Detections 24 | . 3 . 3 . . . 8 3 . . 1 . 3 1 2 Full Trace Events . | . . . . . . . . . . . . . . . . Feedback Events . | . . . . . . . . . . . . . . . . Feedback Blocked . | . . . . . . . . . . . . . . . . Robot Schematics Acquired . | . . . . . . . . . . . . . . . . Robots Built . | . . . . . . . . . . . . . . . . Authchips . | . . . . . . . . . . . . . . . . Time . | . . . . . . . . . . . . . . . . Total Robot Build Rating . | . . . . . . . . . . . . . . . . Part Schematics Acquired 3 | . . . 1 . . . 2 . . . . . . . . Parts Built . | . . . . . . . . . . . . . . . . Authchips . | . . . . . . . . . . . . . . . . Time . | . . . . . . . . . . . . . . . . Total Part Build Rating . | . . . . . . . . . . . . . . . . Parts Repaired . | . . . . . . . . . . . . . . . . Time . | . . . . . . . . . . . . . . . . Parts Recycled . | . . . . . . . . . . . . . . . . Recycled Matter . | . . . . . . . . . . . . . . . . Retrieved Matter . | . . . . . . . . . . . . . . . . Retrieved Components . | . . . . . . . . . . . . . . . . Parts Scanalyzed 3 | . . . 1 . . . 2 . . . . . . . . Part Schematics Acquired 3 | . . . 1 . . . 2 . . . . . . . . Parts Damaged 1 | . . . . . . . 1 . . . . . . . . Bothacking | -11 -10 -10 -9 -9 -9 -8 -8 -7 -7 -7 -6 -6 -6 -5 -4 ------------ Run | Yrd Mat Min Mat Min Exi Min Mat Fac Low Low Fac Was Fac Fac Fac Used RIF Installer . | . . . . . . . . . . . . . . . . Robots Hacked . | . . . . . . . . . . . . . . . . Non-combat . | . . . . . . . . . . . . . . . . Combat . | . . . . . . . . . . . . . . . . Robot Hacks Applied . | . . . . . . . . . . . . . . . . Relay Couplers Released . | . . . . . . . . . . . . . . . . Fabnet Peak Effective % . | . . . . . . . . . . . . . . . . Robots Rewired . | . . . . . . . . . . . . . . . . Allies Hacked . | . . . . . . . . . . . . . . . . Hacks Repelled . | . . . . . . . . . . . . . . . . Allies | -11 -10 -10 -9 -9 -9 -8 -8 -7 -7 -7 -6 -6 -6 -5 -4 -------- Run | Yrd Mat Min Mat Min Exi Min Mat Fac Low Low Fac Was Fac Fac Fac Total Allies 3 | . . . . 2 . . 1 . . . . . . . . Largest Group 2 | . . . . 2 . . 1 . . . . . . . . Highest-Rated Group 45 | . . . . 45 . . 10 . . . . . . . . Highest-Rated Ally 31 | . . . . 31 . . 10 . . . . . . . . Total Orders . | . . . . . . . . . . . . . . . . Ally Attacks 6 | . . . . 6 . . . . . . . . . . . Total Damage 83 | . . . . 83 . . . . . . . . . . . Kills 2 | . . . . 2 . . . . . . . . . . . Allies Corrupted . | . . . . . . . . . . . . . . . . Allies Melted . | . . . . . . . . . . . . . . . . Intel | -11 -10 -10 -9 -9 -9 -8 -8 -7 -7 -7 -6 -6 -6 -5 -4 ------- Run | Yrd Mat Min Mat Min Exi Min Mat Fac Low Low Fac Was Fac Fac Fac Robot Analysis Total 2 | . 1 . 1 . . . . . . . . . . . . Derelict Logs Recovered 2 | . . . . 1 . . . . 1 . . . . . . Drone Launches . | . . . . . . . . . . . . . . . . Drone Recoveries . | . . . . . . . . . . . . . . . . Exploration | -11 -10 -10 -9 -9 -9 -8 -8 -7 -7 -7 -6 -6 -6 -5 -4 ------------- Run | Yrd Mat Min Mat Min Exi Min Mat Fac Low Low Fac Was Fac Fac Fac Turns Passed 13595 | 220 887 375 2800 1040 297 237 2872 676 587 63 412 76 505 1149 1399 Spaces Moved 11081 | 113 676 343 1530 566 212 60 1160 905 1260 121 691 118 709 1245 1372 Core 53 | 2 . . 3 . . . . . . . . . . . 48 Treads 99 | 2 36 . 25 . . . 36 . . . . . . . . Legs . | . . . . . . . . . . . . . . . . Wheels 4556 | 109 640 343 1502 566 212 60 1124 . . . . . . . . Hover 4968 | . . . . . . . . 905 1260 121 691 118 709 381 783 Flight 1405 | . . . . . . . . . . . . . . 864 541 Fastest Speed 28 | 50 80 95 95 140 140 140 110 43 43 43 43 56 56 28 32 Average Speed 79 | 97 97 101 135 145 140 140 129 43 43 43 49 56 56 40 45 Slowest Speed 1650 | 160 160 105 1650 155 140 140 465 43 43 43 56 56 56 180 200 Overloaded Moves . | . . . . . . . . . . . . . . . . Propulsion Burnouts . | . . . . . . . . . . . . . . . . Robots Hopped 1 | . . . . . . . . . . . . . . . 1 Cave-ins Triggered 1 | . . . . . . . . . . . 1 . . . . Exploration Rate (%) 47 | 4 87 75 93 86 60 8 47 15 95 15 17 85 23 29 22 Regions Visited 15 Branch Regions 6 Pre-discovered Areas 1 | . . . . . 1 . . . . . . . . . . Known Exits Taken 1 | . . . . . . . 1 . . . . . . . . Unknown Exits Taken 12 | 1 1 1 1 1 1 1 . 1 1 1 . . 1 1 . Scrap Searched 8 | . . 3 . 1 . 1 . . 3 . . . . . . Spaces Dug 91 | . 1 . . . . . 3 3 9 . 12 . 7 39 17 Terrain Destroyed 312 | . 1 . 62 24 . 12 15 20 9 . 12 . 7 51 99 Melee 90 | . . . . . . . 3 3 9 . 12 . 7 39 17 Projectile 11 | . 1 . . . . . 7 . . . . . . . 3 AOE 211 | . . . 62 24 . 12 5 17 . . . . . 12 79 Terrain Rammed . | . . . . . . . . . . . . . . . . Walls Destroyed . | . . . . . . . . . . . . . . . . Machines Disabled . | . . . . . . . . . . . . . . . . Actions | -11 -10 -10 -9 -9 -9 -8 -8 -7 -7 -7 -6 -6 -6 -5 -4 --------- Run | Yrd Mat Min Mat Min Exi Min Mat Fac Low Low Fac Was Fac Fac Fac Total 15037 | 166 834 360 2047 728 213 188 2390 1172 1288 131 750 127 787 1772 2084 Wait 2887 | . 64 2 284 103 . 109 1068 217 7 11 13 10 48 355 596 Move 11064 | 112 675 342 1529 565 211 59 1159 904 1259 120 690 117 708 1244 1370 Hop 1 | . . . . . . . . . . . . . . . 1 Pick Up 149 | 12 16 3 40 10 1 2 16 6 5 . 12 . 2 13 11 Fast Attach 75 | 5 10 . 15 . . . 19 2 2 . 1 . 1 9 11 Attach 57 | 2 . . 10 2 . 1 6 6 1 . 4 . . 12 13 Detach 15 | . . . . . . . . 4 . . . . . 5 6 Swap 86 | 2 13 2 23 7 . 2 21 10 . . 3 . . 2 1 Drop 144 | 3 18 4 33 12 1 2 29 9 2 . 10 . 2 9 10 Fire 346 | 30 37 7 113 29 . 13 68 5 . . . . . 5 39 Melee 192 | . . . . . . . 4 9 12 . 16 . 20 105 26 Ram 1 | . 1 . . . . . . . . . . . . . . Kick . | . . . . . . . . . . . . . . . . Crush . | . . . . . . . . . . . . . . . . Escape Stasis 20 | . . . . . . . . . . . 1 . 6 13 . Rewire . | . . . . . . . . . . . . . . . . Trap . | . . . . . . . . . . . . . . . . Miscellaneous . | . . . . . . . . . . . . . . . . Route ------- -11/Scrapyard -10/Materials (discovered 4 exits: *Mat x2 / [*Min x2]) -10/Mines -9/Materials (discovered 4 exits: *Mat x2 / [*Min x2]) -9/Mines (discovered 4 exits: *Mat x2 / *Exi / [*Zio]) -9/Exiles (discovered 2 exits: [*Min x2]) -8/Mines -8/Materials (discovered 3 exits: *Fac x2 / [*Sto]) -7/Factory -7/Lower Caves -7/Lower Caves -6/Factory -6/Waste -6/Factory -5/Factory -4/Factory (discovered 5 exits: Res x4 / [*Upp]) History --------- Turn | Location | Event 23 | -11/Scrapyard | Discovered new exit (range 15) 221 | -11/Scrapyard | Entered Materials 309 | -10/Materials | Build established: Mutant 647 | -10/Materials | Discovered new exit (range 12) 713 | -10/Materials | Discovered new exit (range 15) 877 | -10/Materials | Discovered new exit (range 10) 999 | -10/Materials | Central database locked down 1008 | -10/Materials | Discovered new exit (range 16) 1108 | -10/Materials | Entered Mines 1474 | -10/Mines | Discovered new exit (range 10) 1483 | -10/Mines | Entered Materials 1483 | -9/Materials | Evolved 2 slots: Utility x2 1650 | -9/Materials | Build established: Scavenger-Mutant 1783 | -9/Materials | Central database locked down 1901 | -9/Materials | Lost 3 parts (2p1n) 2153 | -9/Materials | Build established: Mutant 2437 | -9/Materials | Discovered new exit (range 9) 2680 | -9/Materials | Discovered new exit (range 9) 3017 | -9/Materials | Build established: Scavenger-Mutant 3146 | -9/Materials | Discovered new exit (range 4) 3390 | -9/Materials | Discovered new exit (range 14) 3653 | -9/Materials | Build established: Mutant 3883 | -9/Materials | First assault squad dispatched 3971 | -9/Materials | System corruption reached 10% 3974 | -9/Materials | Core integrity fell below 50% 4004 | -9/Materials | Lost 7 parts (1p2n3u1w) 4272 | -9/Materials | Build established: Scavenger-Mutant 4283 | -9/Materials | Entered Mines 4293 | -9/Mines | Met a Derelict bent on vengeance 4378 | -9/Mines | A Derelict revealed a hidden shortcut to a safe place 4486 | -9/Mines | Discovered new exit (range 5) 4643 | -9/Mines | Learned location of 1 exit from Materials 4733 | -9/Mines | Assembled infested the area 4758 | -9/Mines | Found a damaged Exp. Sensor Array with a note attached 4761 | -9/Mines | Found Prototype Device 4810 | -9/Mines | A weapon hastily lodged in a ceiling crevice suddenly fell to the ground 4863 | -9/Mines | Joined a pair of Derelicts in attacking an 0b10 outpost 5022 | -9/Mines | Found a hidden stash of uninstalled traps 5273 | -9/Mines | Discovered new exit (range 7) 5317 | -9/Mines | Discovered new exit (range 5) 5323 | -9/Mines | Entered Exiles 5346 | -9/Exiles | Discovered new exit (range 15) 5357 | -9/Exiles | Met 8R-AWN 5382 | -9/Exiles | Met EX-HEX 5419 | -9/Exiles | Met EX-BIN 5435 | -9/Exiles | Aligned with FarCom system 5437 | -9/Exiles | Given EX-Vault access code 5469 | -9/Exiles | Opened EX-Vault 5481 | -9/Exiles | Found Modified TNC 5511 | -9/Exiles | Warned to stay clear of 0b10 Research branches 5555 | -9/Exiles | Met EX-DEC 5563 | -9/Exiles | Learned location of Zion (-7) 5604 | -9/Exiles | Discovered new exit (range 14) 5620 | -9/Exiles | Left Exiles lab with Modified TNC 5620 | -9/Exiles | Entered Mines 5774 | -8/Mines | Core integrity fell below 20% 5841 | -8/Mines | Discovered new exit (range 4) 5857 | -8/Mines | Entered Materials 5857 | -8/Materials | Evolved 2 slots: Propulsion x1, Utility x1 5858 | -8/Materials | Identified exit to Factory 5868 | -8/Materials | Discovered new exit (range 16) 6907 | -8/Materials | Discovered exit to Factory (range 13) 7062 | -8/Materials | Lost 5 parts (1p2n1u1w) 7067 | -8/Materials | Build established: Mutant 7383 | -8/Materials | Build established: Scavenger-Mutant 7478 | -8/Materials | Identified Exp. Sensor Array 8729 | -8/Materials | Entered Factory 8729 | -7/Factory | Evolved 2 slots: Power x1, Propulsion x1 8907 | -7/Factory | Discovered new exit (range 15) 9014 | -7/Factory | Build established: Hacker-Mutant 9405 | -7/Factory | Entered Lower Caves 9406 | -7/Lower Caves | Encountered a Warlord checkpoint 9479 | -7/Lower Caves | Learned Factory interactive machine intel 9601 | -7/Lower Caves | Found Alien Artifact 9601 | -7/Lower Caves | Identified Core Expander 9601 | -7/Lower Caves | Installed Core Expander, added new Power slot 9741 | -7/Lower Caves | Spotted B-75 Beast 9990 | -7/Lower Caves | Discovered new exit (range 7) 9992 | -7/Lower Caves | Entered another Lower Caves area 10047 | -7/Lower Caves | Discovered new exit (range 9) 10055 | -7/Lower Caves | Entered Factory 10055 | -6/Factory | Evolved 2 slots: Utility x2 10056 | -6/Factory | Loaded intel: 52 interactive machine locations 10277 | -6/Factory | Crushed by falling debris 10467 | -6/Factory | Sucked down chute 10467 | -6/Factory | Entered Waste 10475 | -6/Waste | Spotted C-40 Crusher 10482 | -6/Waste | EMP discharged 10482 | -6/Waste | System corruption reached 10% 10491 | -6/Waste | Spotted C-40 Crusher 10503 | -6/Waste | Spotted C-40 Crusher 10509 | -6/Waste | Spotted C-40 Crusher 10521 | -6/Waste | Spotted C-40 Crusher 10524 | -6/Waste | Spotted C-40 Crusher 10537 | -6/Waste | Discovered new exit (range 11) 10543 | -6/Waste | Entered Factory 10582 | -6/Factory | Build established: Hacker-Scout 11035 | -6/Factory | Discovered new exit (range 15) 11048 | -6/Factory | Entered another Factory area 11048 | -5/Factory | Evolved 2 slots: Utility x2 11311 | -5/Factory | Garrison activated, responded to threat 11484 | -5/Factory | Lost 4 parts (2n2u) 11850 | -5/Factory | Build established: Wizard-Sprinter 11949 | -5/Factory | Found Prototype Launcher 11961 | -5/Factory | Found Prototype Launcher 11961 | -5/Factory | Identified Mni. Smartbomb Launcher (x2) 12164 | -5/Factory | Discovered new exit (range 15) 12197 | -5/Factory | Entered another Factory area 12197 | -4/Factory | Evolved 2 slots: Utility x2 12235 | -4/Factory | Identified exit to Research 12331 | -4/Factory | Discovered new exit (range 6) 12590 | -4/Factory | Build established: Wizard-Mutant 12961 | -4/Factory | Lost 3 parts (2p1n) 13168 | -4/Factory | Lost 10 parts (2p4n2u2w) 13170 | -4/Factory | System corruption reached 10% 13349 | -4/Factory | Core integrity fell below 50% 13379 | -4/Factory | Lost 5 parts (2n2u1w) 13578 | -4/Factory | Core integrity fell below 20% 13596 | -4/Factory | Destroyed by H-77 Assassin with Coil Gun Last Messages --------------- 13572_ U-05 Engineer builds a Wall. 13572_ Dropped Med. Storage Unit. 13573_ U-05 Engineer destroyed. 13574_ Penetrated by Slug. 13576_ System corrupted: Component data lost. 13577_ Slug penetrates Wall. 13577_ Penetrated by Slug. 13580_ P-70 Sage resets H-77 Assassin, system corruption cleaned. 13584_ W-44 Eye sends out distress signal. 13584_ Slug penetrates Wall. 13587_ Penetrated by Slug. 13588_ Imp. Heat Sink destroyed. 13592_ System corrupted: Matter fused (-10). 13592_ Slug penetrates Wall. 13594_ Slug penetrates T-07 Excavator. 13594_ T-07 Excavator suffers critical hit (Destroy). 13596_ Penetrated by Slug. 13596_ Slug penetrates Wall. 13596_ Penetrated by Slug. Map ----- +----------------------------------------------------+ | ?????######"####????# ### #####" | | ??????????######????# # #?## | | ????????????????????# # ###### | | ????????????????????# # # ## | | ????????????????????# % + # | | ????????????????????# ## # # # | | ????????????????????# ### #### # !# | | ????????????????????# ###?# #??#+##""""# | | ???????????????????# ####????### ###?# # | | ??????????????????# ########?### p #???# """# | | ??????????????????#### # ### # p #???# """#? | | ????????????????????# * ### #???# """#? | | ???????????????????## ### #???# #? | | #############??????# ## #???# """#? | | ! #??????# # * ## #???# """#? | | """" #??????# ## #???# """#? | | """" #???????# ## #???# ??? | | ! """" #??????#######+##### #???########??? | | """" ############# #?????????????? | | + #?????????????? | | ######################### #?????????????? | | #?????????????# !!! #?????????????? | | #??????###????# !!! ##????????????? | | #??????# ??# !!t #????????????? | | #??????# # #????????????? | | #??????#""" /@ #????????????? | | #??????#""" # #????????????? | | #??????#""" ??## hh #????????????? | | #??????# ?????# "" " ########??????? | | #??????#???????# """"" # #??????? | | #??????????????# """ + #??????? | | #????########### # #??????? | | #????# # # #??????? | | ###########????# # ###### ##? """ #??????? | | ???????????????# # #????# #?? """ #??????? | | ???????????????# # #????#g#???""" #??????? | | ?###?###???????# # #????# #??? #??????? | | ## ## ######??# # #????#g#????###???????? | | # ##?# ?# ###??#g#????#######???? | | # ##?? ???# T#?????g? #???? | | ########### #??##+##???# ""#????? #???? | | ######## ##### ###### #???? | | / g + #???? | | # ## ############ "" "" ??????? | | # ######?????????????"" ""????????? | | # #????????????????????" ""????????? | | # #????????????????????????????????? | | + #????????????????????????????????? | | # #????????????????????????????????? | | + #????????????????????????????????? | +----------------------------------------------------+ Best States ------------- Heat Dissipation 70 Energy Generation 23 Energy Capacity 280 Matter Stores 300 Matter Capacity 300 Sight Range 16 Robot Scan Range 20 Terrain Scan Density 10 Armor Coverage 225 Core Shielding 20 Propulsion Shielding 66 Evasion (%) 64 Targeting Accuracy 6 Recoil Reduction 3 Offensive Hacking 60 Defensive Hacking 44 Trap Extractor Capacity 4 Item Schematics ----------------- Structural Scanner | -9/Materials | Scanalyzed Airjet | -8/Materials | Scanalyzed Imp. VTOL Module | -8/Materials | Scanalyzed Robot Schematics ------------------ None Fabricated ------------ Nothing Alien Tech Used ----------------- Core Expander Achievements -------------- None Challenges ------------ None Game ------ Seed MappingPointyGuard Manual? 0 Play Time 02:19:16 Cumulative 42.2 hours Start 2024.06.17 @ 13:47:25 End 2024.06.17 @ 16:14:04 Sessions 1 Manual Loads 0 Difficulty Rogue Special Mode None Game No. 24 Rogue 11 Adventurer 13 Explorer 0 Win Type - Total 0 Types 0/0/0/0/0/0/0/0/0 Lore% 23 Gallery% 37 Achievement% 31 Wizard Run 0 Options --------- Layout 2 ASCII 0 Keyboard 0 Movement Numpad Keybinds 0 Fullscreen 2 Font 16/Swanston Map View 55x47 Zoom Use 0% Tactical HUD 1 Map Filters NONE Filters NONE Steam 0 RUN: 9f3cdf4d-63b0-44cf-b237-e98f9b8ffead